bitfinex-derivatives/quotes_ETHF0:USTF0_20251117
["timestamp","ask_amount","ask_price","bid_price","bid_amount"]
[1763380281537,1.414485,3202.4,3202.3,1.65319173]
[1763380282132,0.2001,3202.5,3202.3,0.04385734]
[1763380282329,0.20383641,3203.0,3202.4,3.1224]
[1763380282534,0.20383641,3203.0,3202.3,1.65392635]
[1763380282832,0.20383641,3203.0,3202.5,40.8]
[1763380283233,0.20383641,3203.0,3202.7,0.04305734]
[1763380283537,0.20383641,3203.0,3202.7,1.65374025]
[1763380283837,0.20383641,3203.0,3202.7,1.67206914]
[1763380284132,0.6257,3202.8,3202.5,40.8]
[1763380284430,1.41659185,3202.8,3202.5,40.8]
[1763380284631,1.41659185,3202.8,3202.5,45.5514118]
[1763380284835,0.35673641,3203.0,3202.5,40.8]
[1763380285027,1.39352601,3202.8,3202.5,42.46737629]
[1763380285331,0.00373641,3203.0,3202.9,0.0008]
[1763380285631,0.2001,3203.5,3202.9,0.0008]
[1763380285833,0.2001,3204.0,3202.9,1.10689528]
[1763380286133,0.2001,3204.0,3203.3,1.10689528]
[1763380286337,0.2001,3204.0,3203.5,40.8]
[1763380286522,0.2033205,3204.0,3203.5,42.45773147]
[1763380287327,0.2033205,3204.0,3203.7,0.04298272]
[1763380288327,0.2033205,3204.0,3203.8,0.04298272]
[1763380288738,0.353,3204.5,3203.8,0.04298272]
[1763380288739,0.353,3204.5,3203.8,1.66760889]
[1763380288926,0.353,3204.5,3203.8,0.04298272]
[1763380289124,0.353,3204.5,3203.8,1.66760889]
[1763380289327,0.353,3204.5,3203.8,2.77397315]
[1763380289540,0.353,3204.5,3204.1,0.04298272]
[1763380289745,0.35663496,3204.5,3204.1,1.64769112]
[1763380290445,0.35663496,3204.5,3204.3,0.04298272]
[1763380290639,0.35663496,3204.5,3204.3,0.04663699]
[1763380290943,0.35663496,3204.5,3204.3,1.66634342]
[1763380291539,0.35663496,3204.5,3204.4,0.04298272]
[1763380291840,0.35663496,3204.5,3204.4,40.84298272]
[1763380292026,0.35663496,3204.5,3204.4,42.49812439]
[1763380292431,0.98233496,3204.5,3204.4,42.49812439]
[1763380293841,0.98233496,3204.5,3204.4,42.48113011]
[1763380294738,0.98233496,3204.5,3204.4,40.84298272]
[1763380294944,0.6257,3204.4,3204.3,0.00365427]
[1763380295740,0.353,3204.0,3203.6,40.8]
[1763380296048,0.353,3204.0,3203.6,42.40932075]
[1763380296731,0.353,3204.0,3203.6,42.41265403]
[1763380297440,0.6257,3203.7,3203.6,42.41265403]
[1763380297634,0.6257,3203.7,3203.6,0.046316]
[1763380297835,0.6257,3203.7,3203.6,1.67638671]
[1763380298041,0.353,3204.0,3203.6,1.67638671]
[1763380298233,0.353,3204.0,3203.6,1.6998647]
[1763380298643,0.353,3204.0,3203.6,0.00333328]
[1763380298841,0.6257,3203.9,3203.8,0.04298272]
[1763380299043,0.6257,3203.9,3203.8,1.69653142]
[1763380300044,0.6257,3203.9,3203.8,0.04298272]
[1763380300241,0.6257,3203.9,3203.8,1.67346328]
[1763380300446,0.353,3204.0,3203.8,1.67346328]
[1763380300951,0.353,3204.0,3203.9,0.04298272]
[1763380301244,0.9787,3204.0,3203.9,0.04298272]
[1763380301841,0.9787,3204.0,3203.9,1.65986519]
[1763380302442,0.9787,3204.0,3203.9,1.65402789]
[1763380303444,0.9787,3204.0,3203.9,1.64727188]
[1763380304542,0.9787,3204.0,3203.9,1.70625473]
[1763380305750,0.9787,3204.0,3203.9,1.65435943]
[1763380306953,0.9787,3204.0,3203.9,1.66685658]
[1763380307137,0.9787,3204.0,3203.9,0.04298272]
[1763380307342,0.9787,3204.0,3203.9,1.66685658]
[1763380308146,0.9787,3204.0,3203.9,0.08596544]
[1763380308352,0.9787,3204.0,3203.9,1.73409292]
[1763380308548,0.35663496,3204.5,3203.9,1.73409292]
[1763380308846,0.353,3205.0,3204.3,3.132]
[1763380309147,0.353,3205.0,3204.8,1.6644227]
[1763380309850,0.353,3205.5,3204.7,42.42105273]
[1763380310055,0.353,3205.5,3205.0,1.66376963]
[1763380310251,0.353,3205.5,3205.1,0.08596544]
[1763380310453,0.353,3206.0,3205.1,1.74973507]
[1763380310752,0.353,3206.0,3205.6,3.26863947]
[1763380311054,0.35535558,3206.0,3205.6,3.26863947]
[1763380311258,0.35535558,3206.0,3205.8,0.08596544]
[1763380311960,0.35535558,3206.0,3205.8,1.74372731]
[1763380312255,0.35535558,3206.0,3205.9,0.08596544]
[1763380312459,0.35535558,3206.0,3205.9,0.08992873]
[1763380313152,0.98105558,3206.0,3205.9,1.70202386]
[1763380313655,0.35535558,3206.0,3205.9,0.08992873]
[1763380313858,0.96575558,3206.0,3205.9,1.70202386]
[1763380314156,0.96575558,3206.0,3205.9,0.08992873]
[1763380314361,0.35535558,3206.0,3205.9,1.73850302]
[1763380315558,0.35535558,3206.0,3205.9,1.7118539]
[1763380315954,0.35535558,3206.0,3205.9,0.08992873]
[1763380316154,0.35535558,3206.0,3205.9,1.7113019]
[1763380317652,0.353,3206.5,3205.9,1.7113019]
[1763380317855,0.353,3206.5,3206.0,1.66292875]
[1763380318055,0.353,3206.5,3206.1,42.46292875]
[1763380318462,0.353,3206.5,3206.3,1.7054692]
[1763380318664,0.35577168,3206.5,3206.3,1.7054692]
[1763380319050,0.353,3207.0,3206.3,4.8238692]
[1763380319262,0.353,3207.0,3206.3,3.41402424]
[1763380319559,0.353,3207.0,3206.6,0.08596544]
[1763380319766,0.3787,3208.0,3206.6,4.86649419]
[1763380319967,0.35603759,3207.5,3206.7,1.66292875]
[1763380320460,0.00303759,3207.5,3207.1,0.08596544]
[1763380320762,0.00303759,3207.5,3207.2,1.66292875]
[1763380320967,0.38173759,3207.5,3207.2,1.66292875]
[1763380321159,0.3787,3208.0,3207.1,12.97226501]
[1763380321356,0.3787,3208.5,3207.4,1.66292875]
[1763380321558,0.3787,3208.0,3207.9,0.08596544]
[1763380321759,0.9891,3208.0,3207.9,1.73698112]
[1763380322064,0.9891,3208.0,3207.9,1.69950198]
[1763380322266,0.99277167,3208.0,3207.9,1.69950198]
[1763380322766,0.38237167,3208.0,3207.9,1.70005551]
[1763380322965,0.38237167,3208.0,3207.9,0.08596544]
[1763380323160,0.99277167,3208.0,3207.9,42.50005551]
[1763380323566,0.38237167,3208.0,3207.9,42.50005551]
[1763380324169,0.38237167,3208.0,3207.9,42.53585119]
[1763380324359,0.99277167,3208.0,3207.9,42.53585119]
[1763380324567,0.99277167,3208.0,3207.9,40.88596544]
[1763380324765,0.99277167,3208.0,3207.9,42.53585119]
[1763380325272,0.38237167,3208.0,3207.9,42.53842441]
[1763380325767,0.99277167,3208.0,3207.9,42.53842441]
[1763380326565,0.38237167,3208.0,3207.9,42.50750033]
[1763380327561,0.38237167,3208.0,3207.9,42.49359895]
[1763380327769,0.99277167,3208.0,3207.9,42.49359895]
[1763380328558,0.99277167,3208.0,3207.9,40.92890086]
[1763380328759,0.99277167,3208.0,3207.9,42.53390875]
[1763380328965,0.99277167,3208.0,3207.9,1.73390875]
[1763380329172,0.6104,3207.7,3207.6,0.00468216]
[1763380331470,0.3787,3207.0,3206.8,40.8]
[1763380332069,0.6104,3206.9,3206.8,40.8]
[1763380332258,0.6104,3206.9,3206.8,42.41706528]
[1763380332462,0.3787,3207.0,3206.8,40.8]
[1763380333269,0.3787,3207.0,3206.8,42.41753092]
[1763380334074,0.6104,3206.9,3206.8,42.41753092]
[1763380334277,0.3787,3207.0,3206.8,42.41753092]
[1763380334278,0.3787,3207.0,3206.8,42.4418225]
[1763380334677,0.3787,3207.0,3206.8,40.8]
[1763380334869,0.3787,3207.0,3206.8,42.4418225]
[1763380335470,0.3787,3207.0,3206.8,42.45846652]
[1763380336369,0.3787,3207.0,3206.8,40.8]
[1763380336670,0.3787,3207.0,3206.8,42.46084158]
[1763380337271,0.3787,3207.0,3206.8,40.8]
[1763380337471,0.3787,3207.0,3206.8,42.46084158]
[1763380337672,0.3787,3207.0,3206.8,42.40885745]
[1763380338169,0.6104,3206.9,3206.8,42.40885745]
[1763380338569,0.6104,3206.9,3206.8,42.42435911]
[1763380338570,0.1104,3206.9,3206.8,42.42435911]
[1763380338776,0.1104,3206.9,3206.8,42.46729453]
[1763380339279,0.1104,3206.9,3206.8,1.66729453]
[1763380339477,0.3787,3207.0,3206.8,1.66729453]
[1763380339680,0.3787,3207.0,3206.8,0.04293542]
[1763380339880,0.54986458,3206.9,3206.8,1.64658518]
[1763380340079,0.5928,3206.9,3206.8,1.64658518]
[1763380340376,0.3787,3207.0,3206.8,42.44658518]
[1763380344383,0.5928,3206.9,3206.8,42.46310828]
[1763380344779,0.6289,3206.6,3206.5,0.00468216]
[1763380345079,0.3787,3207.0,3206.5,0.30288216]
[1763380345279,0.3787,3207.0,3206.5,1.94547028]
[1763380345484,0.6289,3206.6,3206.5,1.94547028]
[1763380345674,0.6289,3206.6,3206.5,1.62606191]
[1763380346077,0.6289,3206.6,3206.5,1.92426191]
[1763380346681,0.3787,3207.0,3206.5,0.30288216]
[1763380347587,0.3787,3207.0,3206.5,1.90858335]
[1763380347884,0.6289,3206.6,3206.5,1.90858335]
[1763380348085,0.6289,3206.6,3206.5,1.63348923]
[1763380348788,0.6289,3206.6,3206.5,1.93168923]
[1763380348978,0.3787,3207.0,3206.5,1.93168923]
[1763380349179,0.6289,3206.6,3206.5,1.98423989]
[1763380349485,0.3787,3207.0,3206.5,1.98423989]
[1763380350087,0.58596458,3206.6,3206.5,1.94130447]
[1763380350386,0.3787,3207.0,3206.5,1.91098651]
[1763380350686,0.3787,3207.0,3206.9,1.94920435]
[1763380350886,0.3787,3207.0,3206.9,0.3411]
[1763380351091,0.63355727,3207.2,3207.1,0.3411]
[1763380351386,0.63355727,3207.2,3207.1,1.61948826]
[1763380351585,0.63355727,3207.2,3207.1,1.96058826]
[1763380351786,0.00465727,3207.2,3207.1,1.96058826]
[1763380351986,0.63355727,3207.2,3206.7,1.66292875]
[1763380352578,0.63355727,3207.2,3206.8,1.66292875]
[1763380352980,0.63355727,3207.2,3207.1,0.3411]
[1763380353285,0.00465727,3207.2,3207.1,1.95294381]
[1763380353486,0.00465727,3207.2,3207.1,0.3411]
[1763380353689,0.00465727,3207.2,3207.1,1.95256086]
[1763380353880,0.00465727,3207.2,3207.1,42.75256086]
[1763380354482,0.00465727,3207.2,3207.1,41.1411]
[1763380354683,0.00465727,3207.2,3207.1,42.79823525]
[1763380355088,0.00367167,3208.0,3207.9,0.3411]
[1763380355283,0.98627167,3208.0,3207.9,1.65713525]
[1763380355488,0.6289,3207.7,3207.3,2.21931132]
[1763380355686,0.6289,3207.7,3207.6,1.65674814]
[1763380355986,0.6289,3207.7,3207.6,1.97313348]
[1763380356587,0.6289,3207.7,3207.6,42.77313348]
[1763380356787,0.35737167,3208.0,3207.6,41.1365]
[1763380356982,0.6289,3207.7,3207.6,40.8]
[1763380357386,0.9826,3207.5,3207.1,3.84680897]
[1763380357889,0.9826,3207.5,3207.2,40.8]
[1763380358389,0.3537,3207.5,3207.4,0.3365]
[1763380358588,0.9826,3207.5,3207.4,0.3365]
[1763380358779,0.6289,3207.3,3207.2,40.8]
[1763380358981,0.3537,3207.5,3207.2,40.8]
[1763380359189,0.3537,3207.5,3207.2,43.01931132]
[1763380359386,0.3537,3207.5,3207.3,0.04293542]
[1763380359591,0.3537,3207.5,3207.4,0.3365]
[1763380360388,0.6289,3207.4,3207.3,0.04293542]
[1763380361194,0.6289,3207.4,3207.3,0.37943542]
[1763380362888,0.3537,3207.5,3207.4,0.3365]
[1763380363290,0.6289,3206.6,3206.5,0.00468216]
[1763380363482,0.6289,3206.6,3206.5,1.67490573]
[1763380364092,0.6289,3206.6,3206.5,0.00468216]
[1763380364292,0.3537,3207.5,3206.5,0.95888216]
[1763380364492,0.6289,3207.0,3206.9,1.67022357]
[1763380364690,0.6289,3206.9,3206.8,1.67022357]
[1763380365086,0.6289,3206.9,3206.8,2.24572357]
[1763380365287,0.6289,3206.9,3206.8,1.67022357]
[1763380365486,0.6289,3206.8,3206.7,1.67022357]
[1763380365691,0.6289,3206.8,3206.7,2.24572357]
[1763380366391,0.6289,3206.8,3206.7,1.67022357]
[1763380367095,0.6289,3206.8,3206.6,1.67022357]
[1763380367288,0.6289,3206.8,3206.7,2.24572357]
[1763380367689,0.3537,3207.5,3206.7,2.24572357]
[1763380368992,0.72859735,3207.9,3206.8,1.67022357]
[1763380369192,0.35737167,3208.0,3207.0,0.3787]
[1763380369391,0.35737167,3208.0,3207.0,1.98939505]
[1763380369584,0.35737167,3208.0,3207.1,1.67022357]
[1763380369785,0.6289,3207.6,3207.5,0.01258334]
[1763380373593,0.6289,3207.6,3207.5,0.58808334]
[1763380376396,0.6289,3207.6,3207.5,0.93388334]
[1763380379497,0.6289,3207.6,3207.5,0.01258334]
[1763380382295,0.6156,3206.9,3206.7,1.67022357]
[1763380382603,0.6156,3206.8,3206.7,2.26682357]
[1763380385409,0.3693,3207.5,3206.7,2.26682357]
[1763380385708,0.6156,3207.5,3207.4,0.5966]
[1763380386502,1.49921071,3208.5,3207.5,0.3458]
[1763380386702,0.72892776,3208.4,3207.5,0.3458]
[1763380387005,0.6156,3207.6,3207.5,0.5966]
[1763380387404,0.6156,3207.4,3207.3,1.67022357]
[1763380387608,0.6156,3207.3,3207.2,1.67022357]
[1763380388210,0.6156,3207.3,3207.2,2.26682357]
[1763380388805,0.6156,3207.3,3207.2,1.67022357]
[1763380389308,0.6156,3207.3,3207.2,2.26682357]
[1763380390506,0.6156,3207.2,3207.1,1.67022357]
[1763380391199,0.6156,3206.7,3206.6,1.67022357]
[1763380392513,0.3684,3207.0,3206.6,2.26682357]
[1763380393109,0.6156,3206.7,3206.6,2.26682357]
[1763380395210,0.3684,3207.0,3206.6,2.26682357]
[1763380395416,0.6156,3207.0,3206.9,0.5966]
[1763380397512,0.3693,3207.5,3206.8,2.22422357]
[1763380397513,0.6156,3206.9,3206.8,2.22422357]
[1763380399209,0.6156,3206.9,3206.8,1.67022357]
[1763380399411,0.213,3207.0,3206.5,0.00468216]
[1763380399617,1.12051071,3207.3,3206.5,0.32508216]
[1763380399816,1.84650151,3207.3,3206.5,0.32508216]
[1763380400016,0.7259908,3207.2,3206.5,0.32508216]
[1763380400210,0.7259908,3207.1,3206.5,0.32508216]
[1763380400411,0.7259908,3207.0,3206.5,0.32508216]
[1763380400622,1.48981071,3207.5,3206.5,0.32508216]
[1763380401119,0.3693,3207.5,3206.5,0.32508216]
[1763380401523,1.48981071,3207.5,3206.5,0.32508216]
[1763380402022,0.73291482,3207.4,3206.5,0.32508216]
[1763380402224,0.73291482,3207.3,3206.5,0.32508216]
[1763380402521,0.73291482,3207.2,3206.5,0.32508216]
[1763380402716,0.3693,3207.5,3206.5,0.32508216]
[1763380403218,0.3693,3207.5,3206.5,0.87908216]
[1763380403916,1.10193014,3207.5,3206.5,0.87908216]
[1763380404123,0.73263014,3207.4,3206.5,0.87908216]
[1763380404322,0.73263014,3207.3,3206.5,0.87908216]
[1763380404512,0.3693,3207.5,3206.5,0.87908216]
[1763380404714,1.12051071,3207.8,3206.5,0.87908216]
[1763380406423,0.73253785,3207.9,3206.5,0.87908216]
[1763380406424,0.73253785,3207.7,3206.5,0.87908216]
[1763380406625,0.73253785,3207.8,3206.5,0.87908216]
[1763380406815,0.35737167,3208.0,3206.5,0.87908216]
[1763380406816,0.73253785,3207.7,3206.5,0.87908216]
[1763380407015,0.73253785,3207.6,3206.5,0.87908216]
[1763380407213,0.35737167,3208.0,3206.5,0.87908216]
[1763380408526,1.47788238,3208.0,3206.5,0.87908216]
[1763380408727,0.7326274,3207.9,3206.5,0.87908216]
[1763380408926,0.7326274,3207.8,3206.5,0.87908216]
[1763380409227,0.7326274,3207.7,3206.5,0.87908216]
[1763380409421,0.7326274,3207.6,3206.5,0.87908216]
[1763380409630,0.7326274,3207.5,3206.5,0.87908216]
[1763380409929,1.47788238,3208.0,3206.5,0.87908216]
[1763380410228,1.12051071,3207.8,3206.5,0.87908216]
[1763380410428,1.85344696,3207.7,3206.5,0.32508216]
[1763380410720,1.12051071,3207.5,3206.5,0.32508216]
[1763380410926,1.85344696,3207.5,3206.5,0.32508216]
[1763380411134,3.85053626,3207.4,3206.5,0.00468216]
[1763380411428,0.73293625,3207.3,3206.5,0.32818216]
[1763380411629,0.73293625,3207.2,3206.5,0.32818216]
[1763380411827,0.73293625,3207.1,3206.5,0.32818216]
[1763380412024,0.73293625,3207.0,3206.5,0.32818216]
[1763380412228,0.73293625,3206.9,3206.5,0.32818216]
[1763380412531,1.12051071,3207.4,3206.5,0.32818216]
[1763380413530,0.73312439,3207.3,3206.5,0.32818216]
[1763380413731,0.73312439,3207.2,3206.5,0.32818216]
[1763380414031,0.73312439,3207.1,3206.5,0.32818216]
[1763380414329,0.73312439,3207.0,3206.5,0.86858216]
[1763380414527,1.12051071,3207.5,3206.5,0.86858216]
[1763380414929,1.85347485,3207.5,3206.5,0.86858216]
[1763380415230,0.73296414,3207.4,3206.5,0.86858216]
[1763380415432,0.73296414,3207.3,3206.5,0.86858216]
[1763380415732,0.73296414,3207.2,3206.5,0.86858216]
[1763380415926,0.73296414,3207.1,3206.5,0.86858216]
[1763380416227,0.73296414,3207.0,3206.5,0.86858216]
[1763380416427,1.12051071,3207.5,3206.5,0.86858216]
[1763380416624,1.8534855,3207.5,3206.5,0.86858216]
[1763380417126,0.73297479,3207.4,3206.5,0.86858216]
[1763380417427,0.73297479,3207.3,3206.5,0.86858216]
[1763380417628,0.73297479,3207.2,3206.5,0.86858216]
[1763380417831,0.73297479,3207.1,3206.5,0.86858216]
[1763380418123,0.73297479,3207.0,3206.5,0.86858216]
[1763380418327,1.12051071,3207.4,3206.5,0.86858216]
[1763380418728,1.85378829,3207.4,3206.5,0.86858216]
[1763380418934,0.73327758,3207.3,3206.5,0.86858216]
[1763380419126,1.12051071,3207.4,3206.5,0.86858216]
[1763380419127,0.73327758,3207.2,3206.5,0.86858216]
[1763380419326,0.73327758,3207.1,3206.5,0.86858216]
[1763380419629,0.73327758,3207.0,3206.5,0.86858216]
[1763380419828,0.73327758,3206.9,3206.5,0.86858216]
[1763380420030,1.12051071,3207.4,3206.5,0.86858216]
[1763380420334,1.8539746,3207.3,3206.5,0.00468216]
[1763380420531,0.73346389,3207.2,3206.5,0.00468216]
[1763380420831,0.73346389,3207.2,3206.5,0.32818216]
[1763380421631,0.7336827,3207.1,3206.5,0.32818216]
[1763380421924,0.7336827,3207.0,3206.5,0.32818216]
[1763380422122,0.7336827,3206.9,3206.5,0.32818216]
[1763380422329,0.7336827,3206.8,3206.5,0.32818216]
[1763380422633,1.12051071,3207.3,3206.5,0.32818216]
[1763380422832,1.12051071,3207.0,3206.5,0.32818216]
[1763380423333,1.85415385,3207.0,3206.5,0.32818216]
[1763380423625,0.73364314,3206.9,3206.5,0.86858216]
[1763380423822,0.73364314,3206.8,3206.5,0.86858216]
[1763380424023,0.73364314,3206.7,3206.6,0.5404]
[1763380424222,1.12051071,3207.4,3207.0,0.3235]
[1763380424423,1.85399512,3207.3,3207.0,0.3235]
[1763380424627,0.73348441,3207.2,3207.0,0.3235]
[1763380424837,0.73348441,3207.1,3207.0,0.3235]
[1763380425132,0.73348441,3207.4,3207.0,0.3235]
[1763380425332,0.73348441,3207.3,3207.0,0.3235]
[1763380425538,0.73348441,3207.2,3207.0,0.3235]
[1763380425835,0.73348441,3207.1,3207.0,0.3235]
[1763380426236,0.73348441,3207.4,3207.0,0.3235]
[1763380426436,0.73348441,3207.3,3207.2,0.5404]
[1763380427138,0.73348441,3207.5,3207.2,0.5404]
[1763380427529,0.73348441,3207.4,3207.2,0.5404]
[1763380427734,0.73348441,3207.3,3207.2,0.5404]
[1763380427929,1.85399512,3207.7,3207.2,0.5404]
[1763380428229,0.73348441,3207.6,3207.2,0.5404]
[1763380428832,0.73348441,3207.6,3207.0,0.3235]
[1763380429234,0.73348441,3207.5,3207.0,0.3235]
[1763380429632,0.73348441,3207.5,3207.0,0.8639]
[1763380431239,0.73348441,3207.5,3207.0,0.3235]
[1763380431739,0.73348441,3207.4,3207.0,0.3235]
[1763380431935,0.73348441,3207.3,3207.0,0.3235]
[1763380432238,0.73348441,3207.2,3207.0,0.3235]
[1763380432435,0.73348441,3207.1,3206.5,0.32818216]
[1763380432637,0.73348441,3207.0,3206.5,0.32818216]
[1763380432836,0.73348441,3206.9,3206.5,0.84488216]
[1763380433042,0.73348441,3206.8,3206.5,0.84488216]
[1763380433235,1.12051071,3207.3,3206.5,0.84488216]
[1763380433436,0.73880388,3207.2,3206.5,0.84488216]
[1763380434637,0.73880388,3207.2,3207.0,0.3168]
[1763380436542,0.73880388,3207.1,3207.0,0.3168]
[1763380437744,0.73880388,3207.2,3207.0,0.8335]
[1763380437943,0.73880388,3207.2,3207.1,0.5167]
[1763380438141,0.73880388,3207.2,3207.0,0.3168]
[1763380438841,0.73880388,3207.1,3207.0,0.3168]
[1763380439037,0.73880388,3207.3,3207.0,0.3168]
[1763380439239,0.73880388,3207.2,3207.0,0.3168]
[1763380440148,0.73880388,3207.1,3207.0,0.3168]
[1763380440346,0.73880388,3207.1,3206.5,0.84488216]
[1763380440537,0.73880388,3207.0,3206.5,0.84488216]
[1763380440946,0.73880388,3207.0,3206.5,0.32818216]
[1763380441147,1.12051071,3206.8,3206.5,0.32818216]
[1763380441346,1.85931459,3206.7,3206.5,0.32818216]
[1763380441645,0.73880388,3206.6,3206.5,0.32818216]
[1763380441850,1.85931459,3206.6,3206.0,0.3204]
[1763380442052,1.85931459,3206.5,3206.0,0.3204]
[1763380442253,0.73880388,3206.4,3206.0,0.3204]
[1763380443447,0.73880388,3206.3,3206.0,0.3204]
[1763380443653,0.73880388,3206.2,3206.0,0.3204]
[1763380443852,0.73880388,3206.1,3206.0,0.8371]
[1763380444046,0.00468216,3206.5,3206.3,0.5167]
[1763380444552,0.00468216,3206.5,3206.4,0.5167]
[1763380445846,0.74323126,3206.5,3206.4,0.5167]
[1763380446052,0.00468216,3206.5,3206.4,0.5167]
[1763380447651,0.73807428,3207.3,3207.2,0.5167]
[1763380448056,1.85858499,3207.5,3207.0,0.3168]
[1763380448241,0.73807428,3207.4,3207.0,0.3168]
[1763380448554,0.73807428,3207.3,3207.0,0.3168]
[1763380448751,0.73807428,3207.2,3207.0,0.3168]
[1763380448950,0.73807428,3207.1,3206.5,0.8335]
[1763380449153,0.73807428,3207.0,3206.5,0.8335]
[1763380449345,0.73807428,3206.9,3206.5,0.8335]
[1763380449651,0.73807428,3206.8,3206.7,0.5167]
[1763380449852,1.12051071,3207.4,3207.0,0.3168]
[1763380450355,1.85854142,3207.4,3207.0,0.3168]
[1763380450654,0.73803071,3207.3,3207.0,0.3168]
[1763380450953,0.73803071,3207.2,3207.0,0.3168]
[1763380451154,0.73803071,3207.1,3207.0,0.8335]
[1763380451648,7.52751071,3207.7,3207.5,0.8335]
[1763380451846,0.73797685,3207.6,3207.5,0.3168]
[1763380452351,0.73782807,3207.7,3207.6,0.5167]
[1763380452554,0.73782802,3207.7,3207.6,0.5167]
[1763380454244,0.73782802,3207.7,3207.5,0.3168]
[1763380454855,0.73782802,3207.7,3207.6,0.5167]
[1763380455566,1.12362449,3207.8,3207.7,0.5167]
[1763380455956,0.00367167,3208.0,3207.9,0.5167]
[1763380457143,0.00367167,3208.0,3207.6,0.00468216]
[1763380458558,0.00367167,3208.0,3207.6,0.47098216]
[1763380460056,0.73765466,3208.0,3207.6,0.47098216]
[1763380460250,0.73398299,3207.9,3207.6,0.47098216]
[1763380460450,0.73398299,3207.8,3207.7,0.4663]
[1763380460852,0.00367167,3208.0,3207.7,0.4663]
[1763380461649,0.73765466,3208.0,3207.6,0.00468216]
[1763380461849,0.73398299,3207.9,3207.6,0.00468216]
[1763380462062,0.73398299,3207.8,3207.6,0.00468216]
[1763380462359,0.00367167,3208.0,3207.9,0.44]
[1763380462561,0.00367167,3208.0,3207.6,0.00468216]
[1763380464759,0.00367167,3208.0,3207.5,0.3168]
[1763380464760,1.12418238,3208.0,3207.5,0.3168]
[1763380464961,3.1168,3207.9,3207.0,0.7568]
[1763380465150,0.73319074,3207.8,3207.0,0.7568]
[1763380465450,0.73319074,3207.7,3207.0,0.7568]
[1763380465650,0.73319074,3207.6,3207.0,0.76148216]
[1763380465856,0.73319074,3207.5,3207.0,0.76148216]
[1763380466055,0.73319074,3207.4,3207.0,0.76148216]
[1763380466361,0.73319074,3207.3,3207.0,0.76148216]
[1763380466663,0.73319074,3207.2,3207.0,0.76148216]
[1763380466964,1.12519287,3207.7,3207.0,0.76148216]
[1763380467860,1.12519287,3207.7,3207.0,0.32148216]
[1763380468171,0.73320205,3207.6,3206.0,0.3204]
[1763380468468,1.12051071,3207.2,3207.0,0.2773]
[1763380468659,0.73320205,3207.1,3207.0,0.2773]
[1763380468855,0.73320205,3207.1,3207.0,0.7173]
[1763380469057,1.12051071,3207.3,3207.0,0.7173]
[1763380469756,1.12051071,3207.3,3207.0,0.2773]
[1763380470461,1.85371276,3207.3,3207.0,0.2773]
[1763380470674,0.73320205,3207.2,3207.0,0.2773]
[1763380470965,0.73320205,3207.1,3207.0,0.2773]
[1763380471160,1.12051071,3207.3,3207.0,0.2773]
[1763380471562,0.73320205,3207.2,3207.0,0.2773]
[1763380471762,0.73320205,3207.1,3207.0,0.7173]
[1763380472466,1.12051071,3207.4,3207.0,0.7173]
[1763380472871,0.73320205,3207.3,3207.0,0.7173]
[1763380473063,0.73320205,3207.2,3207.0,0.7173]
[1763380473370,0.73320205,3207.1,3207.0,0.7173]
[1763380473569,0.73320205,3207.4,3207.0,0.7173]
[1763380474269,0.73320205,3207.3,3207.0,0.7173]
[1763380474468,0.73320205,3207.2,3207.0,0.7173]
[1763380474671,0.73320205,3207.1,3207.0,0.7173]
[1763380474969,0.73320205,3207.4,3207.0,0.7173]
[1763380475171,0.73320205,3207.3,3207.0,0.7173]
[1763380475365,0.73320205,3207.2,3207.0,0.7173]
[1763380475572,0.73320205,3207.1,3207.0,0.7173]
[1763380475872,0.73320205,3207.4,3207.0,0.7173]
[1763380476070,0.73320205,3207.3,3207.0,0.7173]
[1763380476270,0.73320205,3207.2,3207.1,0.44]
[1763380476565,0.73320205,3207.4,3207.1,0.44]
[1763380476760,0.73320205,3207.3,3207.2,0.44]
[1763380477259,1.12051071,3207.6,3207.3,0.44]
[1763380477465,0.73394501,3207.5,3207.4,0.44]
[1763380477973,0.7339296,3207.6,3207.5,0.2773]
[1763380481970,1.85912247,3207.7,3207.5,0.2773]
[1763380482174,0.7339296,3207.6,3207.5,0.2773]
[1763380483471,1.12519287,3207.7,3207.5,0.2773]
[1763380483773,1.85912247,3207.7,3207.5,0.2773]
[1763380483970,0.7339296,3207.6,3207.5,0.2773]
[1763380484175,1.12519287,3207.7,3207.5,0.2773]
[1763380484368,1.85912247,3207.7,3207.5,0.2773]
[1763380484566,0.7339296,3207.6,3207.5,0.2773]
[1763380484966,1.12519287,3207.7,3207.5,0.2773]
[1763380485163,1.85912247,3207.7,3207.5,0.2773]
[1763380485367,1.85444031,3207.6,3207.5,0.2773]
[1763380485568,1.12051071,3207.6,3207.5,0.2773]
[1763380486277,1.12519287,3207.7,3207.6,0.44]
[1763380486475,1.85915735,3207.7,3207.6,0.44]
[1763380486773,1.12519287,3207.7,3207.6,0.44]
[1763380486971,1.12519287,3207.7,3207.5,0.7173]
[1763380487375,1.12051071,3207.6,3207.5,0.2773]
[1763380490376,1.85447519,3207.6,3207.5,0.2773]
[1763380492175,1.85447519,3207.6,3207.0,0.2773]
[1763380492382,0.73396448,3207.5,3207.0,0.2773]
[1763380492575,1.85447519,3207.6,3207.5,0.6451]
[1763380492881,1.85526862,3207.6,3207.5,0.2398]
[1763380494081,2.41615917,3207.6,3207.0,0.2773]
[1763380494284,1.12111362,3207.3,3207.0,0.2773]
[1763380494473,0.73475791,3207.2,3207.0,0.6826]
[1763380494672,0.73475791,3207.1,3207.0,0.6826]
[1763380494871,1.12111362,3207.3,3207.1,0.4053]
[1763380495070,0.73531594,3207.2,3207.1,0.4053]
[1763380495476,0.73531594,3207.2,3207.0,0.2773]
[1763380495477,1.12111362,3207.4,3207.2,0.4053]
[1763380495683,0.73533482,3207.3,3207.0,0.2773]
[1763380495883,0.73533482,3207.2,3207.0,0.2773]
[1763380496179,0.73533482,3207.1,3207.0,0.6826]
[1763380496371,0.73533482,3207.3,3207.0,0.2773]
[1763380496682,0.73533482,3207.2,3207.1,0.4053]
[1763380496879,0.7353436,3207.3,3207.2,0.4053]
[1763380497186,0.73534358,3207.3,3207.0,0.2773]
[1763380497378,0.73534358,3207.2,3207.0,0.2773]
[1763380497682,0.73534358,3207.1,3207.0,0.6826]
[1763380498078,0.73534358,3207.3,3207.0,0.6826]
[1763380498378,0.73534358,3207.2,3207.0,0.2773]
[1763380498585,0.73534358,3207.1,3206.8,0.00468216]
[1763380498781,0.73534358,3207.0,3206.8,0.00468216]
[1763380498981,0.73534358,3206.9,3206.8,0.00468216]